bitfinex-derivatives/quotes_BNBF0:USTF0_20250401
["timestamp","ask_amount","ask_price","bid_price","bid_amount"]
[1743509201813,0.669,613.09,611.2,0.26964598]
[1743509202118,0.669,613.09,611.22,0.32721442]
[1743509202317,0.669,613.09,611.23,0.26964598]
[1743509202517,0.669,613.09,611.25,0.32719836]
[1743509202717,0.669,613.09,611.26,0.26964598]
[1743509202919,0.669,613.09,611.28,0.3271823]
[1743509203218,0.669,613.09,611.29,0.26964598]
[1743509203418,0.669,613.09,611.31,0.32716624]
[1743509203618,1.567,613.1,611.32,0.26964598]
[1743509203819,1.567,613.1,611.34,0.32715019]
[1743509204015,0.28408395,613.08,611.35,0.26964598]
[1743509204213,0.28408395,613.08,611.37,0.32713414]
[1743509204413,0.28408395,613.08,611.38,0.26964598]
[1743509204616,0.28408395,613.08,611.4,0.32711808]
[1743509204817,0.28408395,613.08,611.41,0.27007471]
[1743509205019,0.28408395,613.08,611.43,0.32710203]
[1743509205219,0.28408395,613.08,611.44,0.27007471]
[1743509205520,0.28408395,613.08,611.46,0.32708599]
[1743509205714,0.67,613.24,611.47,0.27007471]
[1743509205917,0.28409787,613.07,611.49,0.32706994]
[1743509206118,0.28409787,613.07,611.5,0.27007471]
[1743509206316,0.67,613.24,611.52,0.32705389]
[1743509206516,0.67,613.24,611.53,0.27007471]
[1743509206714,0.67,613.24,611.54,0.27007471]
[1743509206915,1.21106888,613.23,611.55,0.27007471]
[1743509207115,1.21106888,613.23,611.56,0.27007471]
[1743509207315,1.21106888,613.23,611.57,0.27007471]
[1743509207517,1.21106888,613.23,611.58,0.27007471]
[1743509207716,1.21106888,613.23,611.59,0.27007471]
[1743509207915,1.21106888,613.23,611.52,0.32705389]
[1743509208218,1.21106888,613.23,611.53,0.27008279]
[1743509208423,0.918,613.22,611.54,0.27008279]
[1743509208619,0.918,613.22,611.55,0.27008279]
[1743509208921,0.648,613.21,611.57,0.32702715]
[1743509209122,0.648,613.21,611.58,0.27008279]
[1743509209425,0.648,613.21,611.6,0.32701111]
[1743509209624,0.648,613.21,611.61,0.27008279]
[1743509209818,0.648,613.21,611.63,0.32699507]
[1743509210018,0.28403642,613.2,611.64,0.27008279]
[1743509210222,0.28403642,613.2,611.66,0.32697904]
[1743509210426,0.28403642,613.2,611.67,0.27008279]
[1743509211217,0.28403642,613.2,611.68,0.27008279]
[1743509211423,0.28403642,613.2,611.69,0.27008279]
[1743509211621,0.648,613.21,611.7,0.27008279]
[1743509211820,0.648,613.21,611.72,0.32694696]
[1743509212025,0.648,613.21,611.73,0.27008279]
[1743509212224,0.648,613.21,611.75,0.32693093]
[1743509212424,0.648,613.21,611.76,0.27008279]
[1743509212625,0.648,613.21,611.77,0.27008279]
[1743509212927,0.648,613.21,611.78,0.27008279]
[1743509213127,0.648,613.21,611.8,0.32690421]
[1743509213323,0.648,613.21,611.81,0.27008279]
[1743509213628,0.648,613.21,611.82,0.27008279]
[1743509213828,0.648,613.21,611.84,0.32688284]
[1743509214030,0.648,613.21,611.85,0.27008279]
[1743509214323,0.648,613.21,611.87,0.32686681]
[1743509214628,0.648,613.21,611.88,0.27008279]
[1743509214827,0.648,613.21,611.9,0.32685079]
[1743509215022,0.648,613.21,611.91,0.27008279]
[1743509215226,0.648,613.21,611.93,0.32683476]
[1743509215423,0.648,613.21,611.94,0.27008279]
[1743509215621,0.648,613.21,611.96,0.32681874]
[1743509215824,0.648,613.21,611.97,0.27008279]
[1743509216022,0.648,613.21,611.99,0.32680272]
[1743509216228,0.648,613.21,612.0,0.27008279]
[1743509216525,0.648,613.21,612.02,0.3267867]
[1743509216727,0.802,613.2,612.03,0.27008279]
[1743509216927,0.802,613.2,612.05,0.32677068]
[1743509217128,0.802,613.2,612.06,0.27008279]
[1743509217328,0.802,613.2,611.68,0.28392634]
[1743509217329,0.802,613.2,612.08,0.32675467]
[1743509217627,0.802,613.2,612.09,0.27008279]
[1743509217825,0.802,613.2,612.11,0.32673865]
[1743509218128,0.802,613.2,612.12,0.27008279]
[1743509218328,0.802,613.2,612.14,0.32672264]
[1743509218523,0.802,613.2,612.15,0.27008279]
[1743509218723,0.802,613.2,612.17,0.32670663]
[1743509218929,0.802,613.2,612.18,0.27008279]
[1743509219128,0.802,613.2,612.2,0.32669062]
[1743509219323,0.802,613.2,612.21,0.27008279]
[1743509219528,0.802,613.2,612.23,0.32667461]
[1743509219729,0.802,613.2,612.24,0.27008279]
[1743509220029,0.802,613.2,612.26,0.3266586]
[1743509220930,0.28402019,613.19,612.27,0.26986948]
[1743509221130,0.28402019,613.19,612.28,0.32664793]
[1743509221333,0.28402019,613.19,612.29,0.26986948]
[1743509221524,0.28402019,613.19,612.3,0.32663726]
[1743509221724,0.28402019,613.19,612.31,0.26986948]
[1743509223132,0.28402019,613.19,612.31,0.59650141]
[1743509223325,0.28402019,613.19,612.32,0.26986948]
[1743509223828,0.28402019,613.19,612.33,0.27005152]
[1743509224129,0.28402019,613.19,612.32,0.27005152]
[1743509224331,0.28402019,613.19,612.33,0.27005152]
[1743509224629,0.28402019,613.19,612.34,0.27005152]
[1743509224829,0.28402019,613.19,612.35,0.27005152]
[1743509225032,0.28402019,613.19,612.36,0.27005152]
[1743509225233,0.28402019,613.19,612.32,0.27005152]
[1743509225433,0.28402019,613.19,612.33,0.27005152]
[1743509225633,0.28402019,613.19,612.31,0.32663193]
[1743509225835,0.28402019,613.19,612.32,0.27010434]
[1743509226833,0.28402019,613.19,612.33,0.32662126]
[1743509227033,0.28402019,613.19,612.34,0.27010434]
[1743509227429,0.28402019,613.19,612.35,0.32661059]
[1743509227634,0.28402019,613.19,612.36,0.27010434]
[1743509227933,0.28402019,613.19,612.37,0.32659993]
[1743509228138,0.28402019,613.19,612.38,0.27010434]
[1743509228339,0.28402019,613.19,612.39,0.32658926]
[1743509228539,0.28402019,613.19,612.4,0.27010434]
[1743509228738,0.28402019,613.19,612.4,0.59668827]
[1743509229140,0.28402019,613.19,612.41,0.27010434]
[1743509229739,1.473,613.2,612.41,0.27010434]
[1743509229940,0.28395067,613.18,612.41,0.27010434]
[1743509232138,0.28395067,613.18,612.42,0.26999763]
[1743509232343,0.28395067,613.18,612.4,0.32658393]
[1743509232644,1.34836654,613.19,612.4,0.32658393]
[1743509232841,1.473,613.2,612.4,0.32658393]
[1743509233043,0.28415006,613.17,612.4,0.32658393]
[1743509233645,1.34836654,613.16,612.4,0.32658393]
[1743509233846,1.34836654,613.15,612.4,0.32658393]
[1743509234038,1.34836654,613.14,612.4,0.32658393]
[1743509234243,1.34836654,613.13,612.4,0.32658393]
[1743509234548,1.34836654,613.12,612.4,0.32658393]
[1743509234747,1.34836654,613.11,612.4,0.32658393]
[1743509234947,1.34836654,613.1,612.4,0.32658393]
[1743509235147,1.34836654,613.16,612.4,0.32658393]
[1743509235341,1.34836654,613.15,612.4,0.32658393]
[1743509235540,1.34836654,613.14,612.4,0.32658393]
[1743509235746,1.34836654,613.13,612.4,0.32658393]
[1743509236047,2.17936654,613.12,612.4,0.32658393]
[1743509236244,1.34836654,613.11,610.52,2.50262241]
[1743509236445,1.34836654,613.1,610.64,0.32752521]
[1743509236643,1.34836654,613.09,610.65,0.27039557]
[1743509236845,1.34836654,613.08,610.77,0.3274555]
[1743509237041,1.34836654,613.07,610.78,0.27039557]
[1743509237246,1.34836654,613.06,610.89,0.32739118]
[1743509237443,1.34836654,613.05,610.9,0.27039557]
[1743509237749,1.34836654,613.04,611.0,0.32733224]
[1743509237941,1.34836654,613.03,611.01,0.27039557]
[1743509238144,1.34836654,613.02,611.11,0.32727332]
[1743509238346,1.34836654,613.01,611.12,0.27039557]
[1743509238545,1.34836654,613.0,611.14,0.32725725]
[1743509238748,1.34836654,612.99,611.15,0.27049617]
[1743509238948,1.34836654,612.98,611.17,0.32724119]
[1743509239150,1.34836654,612.99,611.18,0.27049617]
[1743509239352,0.672,613.0,611.2,0.32722513]
[1743509239543,1.34836654,612.99,611.21,0.27049617]
[1743509239745,1.34836654,612.98,611.23,0.32720907]
[1743509239942,1.34836654,612.97,611.24,0.27049617]
[1743509240147,1.34836654,612.96,611.26,0.32719301]
[1743509240348,1.34836654,612.95,611.27,0.27049617]
[1743509240543,1.34836654,612.94,611.28,0.27049617]
[1743509240749,1.34836654,612.93,611.29,0.27049617]
[1743509240945,1.34836654,612.92,611.31,0.32716624]
[1743509241143,1.34836654,612.91,611.32,0.27049617]
[1743509241347,1.34836654,612.9,611.34,0.32715019]
[1743509241548,1.34836654,612.89,611.35,0.27049617]
[1743509241747,0.943,612.98,611.37,0.32713414]
[1743509241946,0.943,612.98,611.38,0.27051741]
[1743509242248,0.943,612.98,611.4,0.32711808]
[1743509242452,0.943,612.98,611.41,0.27051741]
[1743509242648,0.943,612.98,611.43,0.32710203]
[1743509242851,0.943,612.98,611.44,0.27051741]
[1743509243055,0.28418719,612.97,611.46,0.32708599]
[1743509243351,0.28418719,612.97,611.47,0.27052514]
[1743509243550,0.28418719,612.97,611.49,0.32706994]
[1743509243748,0.28418719,612.97,611.5,0.27052514]
[1743509243948,0.28418719,612.97,611.52,0.32705389]
[1743509244154,0.28418719,612.97,611.53,0.27052514]
[1743509244349,0.28418719,612.97,611.55,0.32703785]
[1743509244556,0.28418719,612.97,611.56,0.27052514]
[1743509244757,0.943,612.98,611.58,0.32702181]
[1743509245057,0.943,612.98,611.59,0.27052514]
[1743509245255,0.943,612.98,611.61,0.32700577]
[1743509245449,0.943,612.98,611.62,0.27052514]
[1743509245655,0.943,612.98,611.64,0.32698973]
[1743509245955,0.28412106,612.97,611.65,0.27052514]
[1743509246158,0.28412106,612.97,611.67,0.32697369]
[1743509246356,0.28412106,612.97,611.68,0.27052514]
[1743509246659,0.28412106,612.97,611.7,0.32695765]
[1743509246858,0.28412106,612.97,611.71,0.27028483]
[1743509247055,0.28412106,612.97,611.73,0.32694162]
[1743509247255,0.28412106,612.97,611.74,0.27028483]
[1743509247654,0.943,612.98,611.73,0.32694162]
[1743509248052,0.28410019,612.96,611.73,0.32694162]
[1743509248454,0.28410019,612.96,611.74,0.27044831]
[1743509248654,0.28410019,612.96,611.76,0.32692559]
[1743509248856,1.34506753,612.95,611.77,0.27044831]
[1743509249057,1.34506753,612.94,611.77,0.27044831]
[1743509249254,1.67136906,612.93,611.76,0.32692559]
[1743509249454,1.34506753,612.92,611.76,0.32692559]
[1743509249655,1.34506753,612.91,611.76,0.32692559]
[1743509249858,1.34506753,612.9,611.76,0.32692559]
[1743509250061,1.34506753,612.89,611.76,0.32692559]
[1743509250261,1.34506753,612.88,611.76,0.32692559]
[1743509250561,1.34506753,612.87,611.76,0.32692559]
[1743509250760,1.34506753,612.86,611.76,0.32692559]
[1743509250961,1.34506753,612.85,611.76,0.32692559]
[1743509251156,1.34506753,612.84,611.76,0.32692559]
[1743509251359,1.34506753,612.83,611.76,0.32692559]
[1743509251561,1.34506753,612.82,611.76,0.32692559]
[1743509251760,1.34506753,612.81,611.76,0.32692559]
[1743509251959,1.34506753,612.8,611.76,0.32692559]
[1743509252160,1.34506753,612.79,611.76,0.32692559]
[1743509252357,1.34506753,612.78,611.76,0.32692559]
[1743509252557,1.34506753,612.8,611.76,0.32692559]
[1743509252759,1.34506753,612.79,611.76,0.32692559]
[1743509252959,1.34506753,612.8,611.76,0.32692559]
[1743509253159,0.28445549,612.81,611.76,0.32692559]
[1743509255360,1.34506753,612.8,611.76,0.32692559]
[1743509256067,0.28445549,612.81,611.76,0.32692559]
[1743509256264,0.28445549,612.81,611.77,0.2707427]
[1743509256462,0.28445549,612.81,611.78,0.3269149]
[1743509256662,0.28445549,612.81,611.79,0.2707427]
[1743509256861,1.34506753,612.8,611.79,0.2707427]
[1743509257064,1.34506753,612.79,611.79,0.2707427]
[1743509257362,1.34506753,612.78,611.79,0.2707427]
[1743509257560,1.34506753,612.77,611.79,0.2707427]
[1743509257862,1.34506753,612.76,611.79,0.2707427]
[1743509258059,1.34506753,612.75,611.79,0.2707427]
[1743509258265,1.34397469,612.74,611.79,0.2707427]
[1743509258566,1.34397469,612.8,611.8,0.32690421]
[1743509258768,1.34397469,612.79,611.81,0.2707427]
[1743509258964,1.34397469,612.78,611.81,0.2707427]
[1743509259266,1.34397469,612.77,611.81,0.2707427]
[1743509259468,1.34397469,612.8,611.81,0.2707427]
[1743509259763,1.34397469,612.79,611.81,0.2707427]
[1743509259984,1.34397469,612.78,611.81,0.2707427]
[1743509260267,1.34397469,612.77,611.81,0.2707427]
[1743509260466,1.34397469,612.76,611.81,0.2707427]
[1743509260662,1.34397469,612.78,611.81,0.2707427]
[1743509260864,1.34423016,612.77,611.81,0.2707427]
[1743509261061,1.34423016,612.76,611.81,0.2707427]
[1743509261266,0.28419879,612.79,611.81,0.32689887]
[1743509261467,0.28419879,612.79,611.82,0.59756266]
[1743509261767,0.28419879,612.79,611.83,0.59755731]
[1743509261968,0.28419879,612.79,611.84,0.27066913]
[1743509262562,0.28419879,612.79,611.85,0.3268775]
[1743509262766,1.009,612.78,611.86,0.27066913]
[1743509263366,1.009,612.78,611.87,0.32686681]
[1743509263566,1.009,612.78,611.88,0.27066913]
[1743509263769,1.009,612.78,611.89,0.32685613]
[1743509264169,1.009,612.78,611.9,0.27066913]
[1743509264370,1.009,612.78,611.91,0.32684545]
[1743509264569,1.009,612.78,611.92,0.27066913]
[1743509267069,0.2841605,612.77,611.92,0.27066913]
[1743509267676,0.672,612.76,611.92,0.27066913]
[1743509268277,1.522,612.75,611.92,0.27066913]
[1743509269277,1.522,612.75,611.93,0.32683476]
[1743509269478,1.001,612.74,611.94,0.27066913]
[1743509269677,1.001,612.74,611.95,0.32682408]
[1743509269977,1.001,612.74,611.96,0.27066913]
[1743509270171,1.001,612.74,611.97,0.3268134]
[1743509270373,1.001,612.74,611.98,0.27066913]
[1743509270575,1.001,612.74,611.99,0.32680272]
[1743509270774,1.001,612.74,612.0,0.27066913]
[1743509270974,1.001,612.74,612.01,0.32679204]
[1743509271170,1.001,612.74,612.02,0.27066913]
[1743509271375,1.001,612.74,612.03,0.32678136]
[1743509271674,1.001,612.74,612.04,0.27066913]
[1743509271874,1.001,612.74,612.05,0.32677068]
[1743509272074,1.001,612.74,612.06,0.27066913]
[1743509272276,1.001,612.74,612.07,0.32676001]
[1743509272472,1.001,612.74,612.08,0.27066913]
[1743509273070,0.28410251,612.73,612.08,0.27066913]
[1743509273478,0.28410251,612.73,612.09,0.32674933]
[1743509273776,0.28410251,612.73,612.1,0.27066913]
[1743509274677,1.001,612.74,612.1,0.27066913]
[1743509275070,0.28410598,612.72,612.1,0.27066913]
[1743509277877,1.001,612.74,612.1,0.27066913]
[1743509279077,0.28410598,612.73,612.09,0.32674933]
[1743509279484,0.28410598,612.73,612.1,0.27039312]
[1743509280483,0.28410598,612.73,612.09,0.32674933]
[1743509282879,0.794,612.72,612.09,0.32674933]
[1743509284086,0.28434393,612.71,612.09,0.32674933]
[1743509285192,0.28434393,612.71,612.1,0.27027465]
[1743509285793,0.794,612.72,612.1,0.27027465]
[1743509286296,0.794,612.72,612.11,0.32673865]
[1743509286490,0.794,612.72,612.12,0.27027465]
[1743509287694,0.794,612.72,612.11,0.32673865]
[1743509287896,0.794,612.72,612.12,0.27015469]
[1743509288192,0.794,612.72,612.13,0.32672798]
[1743509288391,0.794,612.72,612.14,0.27015469]
[1743509290093,0.632,612.71,612.14,0.27015469]
[1743509290892,0.632,612.71,612.13,0.32672798]
[1743509291099,0.632,612.71,612.14,0.27033788]
[1743509292601,0.632,612.71,612.13,0.32672798]
[1743509292899,0.632,612.71,612.14,0.27049706]
[1743509293099,1.128,612.7,612.14,0.27049706]
[1743509293497,1.801,612.7,612.14,0.27049706]
[1743509295101,2.462,612.7,612.13,0.32672798]
[1743509295994,0.28432186,612.69,610.74,2.50262241]
[1743509296200,0.28432186,612.69,610.76,0.32746086]
[1743509296499,0.28432186,612.69,610.77,0.27062542]
[1743509296694,0.28432186,612.69,610.78,0.27062542]
[1743509296895,0.28432186,612.69,610.8,0.32743942]
[1743509297098,0.28432186,612.69,610.81,0.27062542]
[1743509297296,0.28432186,612.69,610.83,0.32742334]
[1743509297499,0.28432186,612.69,610.84,0.27062542]
[1743509297795,0.28432186,612.69,610.86,0.32740726]
[1743509297993,0.28432186,612.69,610.87,0.27062542]
[1743509298197,0.28432186,612.69,610.89,0.32739118]
[1743509298397,0.28432186,612.69,610.9,0.27062542]
[1743509298595,0.28432186,612.69,610.91,0.27062542]
[1743509298804,2.462,612.7,610.92,0.59800052]
[1743509299105,0.28427424,612.68,610.94,0.32736438]
[1743509299404,0.28427424,612.68,610.95,0.27062542]
[1743509299604,0.28427424,612.68,610.97,0.32734831]
[1743509299898,0.28427424,612.68,610.98,0.27062542]
[1743509300103,0.28427424,612.68,611.09,2.50262241]
[1743509300294,0.28427424,612.68,611.11,0.32727332]
[1743509300500,0.28427424,612.68,611.12,0.27062542]
[1743509300695,0.28427424,612.68,611.14,0.32725725]
[1743509300895,0.28427424,612.68,611.15,0.27062542]
[1743509301102,0.28427424,612.68,611.17,0.32724119]
[1743509301303,0.28427424,612.68,611.18,0.27062542]
[1743509301598,0.28427424,612.68,611.2,0.32722513]
[1743509301802,2.462,612.7,611.21,0.27062542]
[1743509301999,2.74620459,612.7,611.23,0.32720907]
[1743509302200,2.74620459,612.7,611.24,0.27062542]
[1743509302503,2.74620459,612.7,611.26,0.32719301]
[1743509302703,2.74620459,612.7,611.27,0.27030051]
[1743509302901,2.74620459,612.7,611.29,0.32717695]
[1743509303099,2.74620459,612.7,611.3,0.27030051]
[1743509303401,2.462,612.7,611.32,0.32716089]
[1743509303703,2.462,612.7,611.33,0.27030051]
[1743509303904,2.462,612.7,611.34,0.27030051]
[1743509304104,2.462,612.7,611.35,0.27030051]
[1743509304305,2.462,612.7,611.36,0.27030051]
[1743509304502,2.462,612.7,611.38,0.32712879]
[1743509304703,2.462,612.7,611.39,0.27030051]
[1743509305004,3.329,612.7,611.4,0.27030051]
[1743509305203,3.329,612.7,611.41,0.27030051]
[1743509305403,3.329,612.7,611.43,0.32710203]
[1743509305602,3.329,612.7,611.44,0.27030051]
[1743509305805,3.329,612.7,611.46,0.32708599]
[1743509305998,3.329,612.7,611.47,0.27030051]
[1743509306203,3.329,612.7,611.49,0.32706994]
[1743509306402,3.329,612.7,611.5,0.27030051]
[1743509306600,3.329,612.7,611.52,0.32705389]
[1743509306801,3.329,612.7,611.53,0.27030051]
[1743509307001,3.329,612.7,611.55,0.32703785]
[1743509307203,3.329,612.7,611.56,0.27030051]
[1743509307405,3.329,612.7,611.55,0.32703785]
[1743509307406,3.329,612.7,611.57,0.27030051]
[1743509307603,3.329,612.7,611.59,0.32701646]
[1743509307802,3.329,612.7,611.6,0.27030051]
[1743509308011,3.329,612.7,611.62,0.32700042]
[1743509308204,3.329,612.7,611.63,0.27030051]
[1743509308406,3.329,612.7,611.31,0.28413034]
[1743509308407,3.329,612.7,611.65,0.32698438]
[1743509308610,3.329,612.7,611.66,0.27030051]
[1743509308809,3.329,612.7,611.68,0.32696834]
[1743509309111,3.329,612.7,611.69,0.27020488]
[1743509309710,3.329,612.7,611.68,0.32696834]
[1743509309910,3.329,612.7,611.69,0.27025518]
[1743509310612,3.329,612.7,611.7,0.27027032]
[1743509310814,3.329,612.7,611.71,0.27027032]
[1743509311114,3.329,612.7,611.08,2.50262241]
[1743509311115,3.329,612.7,611.73,0.32694162]
[1743509311316,3.329,612.7,611.74,0.27027032]
[1743509311512,3.329,612.7,611.76,0.32692559]
[1743509311715,3.329,612.7,611.77,0.27027032]
[1743509312016,3.329,612.7,611.79,0.32690956]
[1743509312219,3.329,612.7,611.8,0.27027032]
[1743509312516,3.329,612.7,611.82,0.32689353]
[1743509312717,3.329,612.7,611.83,0.27027032]
[1743509313216,3.329,612.7,611.84,0.27027032]
[1743509313520,3.329,612.7,611.85,0.27027032]
[1743509313719,3.329,612.7,611.83,0.27027032]
[1743509314013,3.329,612.7,611.85,0.3268775]
[1743509314219,3.329,612.7,611.86,0.27027032]
[1743509314822,3.329,612.7,611.88,0.32686147]
[1743509315020,3.329,612.7,611.89,0.27027032]
[1743509315414,4.247,612.7,611.88,0.32686147]
[1743509315614,4.247,612.7,611.89,0.27028427]
[1743509315817,4.247,612.7,611.91,0.32684545]
[1743509316023,4.247,612.7,611.92,0.27028427]
[1743509316518,4.247,612.7,611.93,0.32683476]
[1743509316714,4.247,612.7,611.94,0.27028427]
[1743509316912,4.247,612.7,611.95,0.32682408]
[1743509317114,4.247,612.7,611.96,0.27028427]
[1743509317312,4.247,612.7,611.97,0.3268134]
[1743509318220,4.247,612.7,611.98,0.27012923]
[1743509318420,4.247,612.7,611.99,0.32680272]
[1743509318816,4.247,612.7,612.0,0.27012923]
[1743509319214,4.247,612.7,612.01,0.32679204]
[1743509319419,4.247,612.7,612.02,0.27012923]
[1743509319619,4.247,612.7,612.03,0.32678136]
[1743509319820,4.247,612.7,612.04,0.27012923]
[1743509320021,4.247,612.7,612.05,0.32677068]
[1743509320221,4.247,612.7,612.06,0.27012923]
[1743509320417,4.247,612.7,612.05,0.32677068]
[1743509320619,4.247,612.7,612.06,0.27006114]
[1743509320818,4.247,612.7,612.07,0.32676001]
[1743509321025,4.247,612.7,612.08,0.27006114]
[1743509321323,4.247,612.7,612.09,0.32674933]
[1743509321525,4.247,612.7,612.1,0.27006114]
[1743509321729,4.247,612.7,612.11,0.32673865]
[1743509321925,4.247,612.7,612.12,0.27006114]
[1743509323021,4.247,612.7,612.13,0.32672798]
[1743509323226,4.247,612.7,612.14,0.27006114]
[1743509325127,4.247,612.7,612.15,0.3267173]
[1743509325327,4.247,612.7,612.16,0.27006114]
[1743509325527,4.247,612.7,612.17,0.32670663]
[1743509325921,4.247,612.7,612.18,0.27006114]
[1743509326122,4.247,612.7,612.19,0.32669596]
[1743509326425,4.247,612.7,612.2,0.27006114]
[1743509326629,4.247,612.7,612.21,0.32668528]
[1743509327030,4.247,612.7,612.22,0.27006114]
[1743509327929,4.247,612.7,612.23,0.32667461]
[1743509328129,4.247,612.7,612.24,0.27006114]
[1743509328326,4.247,612.7,612.25,0.32666394]
[1743509328633,2.252,612.7,612.26,0.27005905]
[1743509329031,1.579,612.7,612.26,0.27005905]
[1743509330726,1.579,612.7,612.27,0.32665327]
[1743509330927,1.579,612.7,612.28,0.27005905]
[1743509331129,1.579,612.7,612.29,0.3266426]
[1743509331324,1.579,612.7,612.3,0.27005905]
[1743509331531,1.579,612.7,612.31,0.32663193]
[1743509331731,1.579,612.7,612.32,0.26979375]
[1743509331933,1.579,612.7,612.33,0.32662126]
[1743509332232,1.579,612.7,612.34,0.26979375]
[1743509332432,1.579,612.7,612.35,0.32661059]
[1743509332635,1.579,612.7,612.36,0.26979375]
[1743509332927,1.579,612.7,612.37,0.32659993]
[1743509333132,1.579,612.7,612.38,0.26979375]
[1743509333328,1.579,612.7,612.39,0.32658926]
[1743509333533,1.579,612.7,612.4,0.26979375]
[1743509333733,0.939,612.76,612.41,0.59637234]
[1743509333926,0.2838916,613.45,612.42,0.59636701]
[1743509334130,0.2838916,613.45,612.44,0.3265626]
[1743509334330,0.2838916,613.45,612.45,0.26979375]
[1743509334531,0.2838916,613.45,612.47,0.3265466]
[1743509334729,2.47607034,614.68,612.48,0.26979375]
[1743509335031,0.2836417,613.46,612.5,0.32653061]
[1743509335233,0.2836417,613.46,612.51,0.26979375]
[1743509335433,2.42906382,614.56,612.52,0.32651995]
[1743509335634,1.64606095,614.55,612.53,0.26979375]
[1743509335835,1.64630135,614.54,612.53,0.26979375]
[1743509336029,1.08248554,614.55,612.55,0.32650395]
[1743509336030,1.64630135,614.53,612.55,0.32650395]
[1743509336230,0.62493993,614.52,612.56,0.26979375]
[1743509336435,0.32546786,614.5,612.58,0.32648796]
[1743509336736,2.72822737,614.49,612.59,0.26958212]
[1743509336938,0.32548375,614.47,612.61,0.32647198]
[1743509337137,1.64574183,614.46,612.62,0.26958212]
[1743509337333,0.32549964,614.44,612.64,0.32645599]
[1743509337538,2.72822737,614.43,612.65,0.26958212]
[1743509337838,0.32551553,614.41,612.67,0.32644]
[1743509338138,1.6457148,614.4,612.68,0.26951314]
[1743509338338,0.32553143,614.38,612.7,0.32642402]
[1743509338539,1.64447107,614.37,612.71,0.26951314]
[1743509338739,1.3450432,614.36,612.73,0.32640804]
[1743509338939,2.75307606,614.35,612.74,0.26951314]
[1743509339137,1.67059582,614.34,612.76,0.32639206]
[1743509339333,1.3450432,614.33,612.77,0.26951314]
[1743509339535,1.3450432,614.32,612.79,0.32637608]
[1743509339734,1.3450432,614.31,612.8,0.26930573]
[1743509339940,1.3450432,614.3,612.82,0.3263601]
[1743509340143,1.3450432,614.29,612.83,0.26930573]
[1743509340337,1.3450432,614.28,612.85,0.32634412]
[1743509340542,1.3450432,614.27,612.86,0.26930573]
[1743509340841,1.3450432,614.26,612.87,0.32633348]
[1743509341036,1.3450432,614.25,612.87,0.32633348]
[1743509341240,1.3450432,614.24,612.88,0.26930573]
[1743509341439,1.3450432,614.23,612.89,0.32632283]
[1743509341640,1.3450432,614.22,612.9,0.26930573]
[1743509341941,1.3450432,614.21,612.91,0.32631218]
[1743509342244,1.3450432,614.2,612.92,0.26930573]
[1743509342440,2.42752874,614.19,612.93,0.32630153]
[1743509342743,1.3450432,614.18,612.94,0.2692961]
[1743509342942,1.08248554,614.19,612.94,0.2692961]
[1743509342943,1.3450432,614.17,612.95,0.32629088]
[1743509343143,1.3450432,614.16,612.96,0.2692961]
[1743509343338,1.3450432,614.15,612.97,0.32628024]
[1743509343645,2.42752874,614.14,612.98,0.2692961]
[1743509343943,1.3450432,614.13,612.98,0.2692961]
[1743509344142,2.42752874,614.12,612.98,0.2692961]
[1743509344343,1.3450432,614.11,612.99,0.32626959]
[1743509344537,2.42752874,614.1,613.0,0.2692961]
[1743509344741,1.3450432,614.09,613.0,0.2692961]
[1743509344943,1.3450432,614.08,613.01,0.32625895]
[1743509345244,2.42752874,614.07,613.02,0.2692961]
[1743509345440,1.3450432,614.06,613.03,0.3262483]
[1743509345637,2.42752874,614.05,613.03,0.3262483]
[1743509345842,1.3450432,614.04,613.03,0.3262483]
[1743509346042,2.42752874,614.03,613.03,0.3262483]
[1743509346243,1.3450432,614.02,613.03,0.3262483]
[1743509346443,1.3450432,614.01,613.03,0.3262483]
[1743509346643,2.42752874,614.0,613.03,0.3262483]
[1743509346844,1.3450432,613.99,610.89,2.50262241]
[1743509347044,2.72709284,613.98,610.9,0.2699627]
[1743509347245,1.6446073,613.97,611.05,0.32730545]
[1743509347544,2.72709284,613.96,611.06,0.2699627]
[1743509347744,1.6446073,613.95,611.07,0.2699627]
[1743509347943,1.6446073,613.94,611.08,0.2699627]
[1743509348143,1.6446073,613.93,611.09,0.2699627]
[1743509348339,1.6446073,613.92,611.1,0.2699627]
[1743509348538,1.67082385,613.91,611.24,0.32720371]
[1743509348739,1.67082915,613.9,611.25,0.27002845]